bitfinex/quotes_BTCUSD_20241211
["timestamp","ask_amount","ask_price","bid_price","bid_amount"]
[1733941119266,9.7e-07,100060.0,100050.0,0.23025845]
[1733941119267,0.00100097,100060.0,100050.0,0.23025845]
[1733941119433,0.00200097,100060.0,100050.0,0.22625845]
[1733941119840,0.00200097,100060.0,100050.0,0.23325845]
[1733941119841,9.7e-07,100060.0,100050.0,0.23325845]
[1733941120072,9.7e-07,100060.0,100050.0,0.49633474]
[1733941120242,0.0001716,100080.0,100060.0,0.31294229]
[1733941120444,0.0001716,100080.0,100070.0,0.1013075]
[1733941120751,0.0001716,100080.0,100070.0,0.2012375]
[1733941121155,0.0001716,100080.0,100070.0,0.09993]
[1733941121156,0.03709531,100080.0,100070.0,0.09993]
[1733941121358,0.03709531,100080.0,100070.0,0.10092909]
[1733941121910,0.03709531,100080.0,100070.0,0.09993]
[1733941122729,0.03809531,100080.0,100070.0,0.09993]
[1733941122942,0.0011716,100080.0,100070.0,0.09993]
[1733941123150,0.00192709,100080.0,100070.0,0.09993]
[1733941123357,0.18373554,100080.0,100070.0,0.09993]
[1733941123603,0.23163554,100080.0,100070.0,0.09993]
[1733941123814,0.23088005,100080.0,100070.0,0.09993]
[1733941125403,0.23188005,100080.0,100070.0,0.09993]
[1733941126675,0.23188005,100080.0,100060.0,0.199864]
[1733941126829,0.43172005,100080.0,100060.0,0.299798]
[1733941127028,0.43172005,100080.0,100060.0,0.199864]
[1733941127290,0.03692371,100050.0,100040.0,0.1269369]
[1733941127476,0.13245549,100060.0,100050.0,0.09995]
[1733941127675,0.23276394,100060.0,100050.0,0.09995]
[1733941127873,0.23276394,100060.0,100040.0,0.12709947]
[1733941127874,0.63176845,100060.0,100040.0,0.12709947]
[1733941128134,0.33230845,100050.0,100040.0,0.02714847]
[1733941128344,0.33230845,100050.0,100040.0,0.12710847]
[1733941128566,0.18230845,100050.0,100040.0,0.12710847]
[1733941128960,0.33230845,100050.0,100040.0,0.12710847]
[1733941129306,0.18330845,100050.0,100040.0,0.12710847]
[1733941129776,0.33230845,100050.0,100040.0,0.12710847]
[1733941129913,0.33530845,100050.0,100040.0,0.12710847]
[1733941130407,0.38130845,100050.0,100040.0,0.12710847]
[1733941130788,0.23130845,100050.0,100040.0,0.12710847]
[1733941131005,0.38130845,100050.0,100040.0,0.12710847]
[1733941131401,0.38230845,100050.0,100040.0,0.02714847]
[1733941131821,0.38330845,100050.0,100040.0,0.02714847]
[1733941132023,0.38330845,100050.0,100040.0,0.12710847]
[1733941132024,0.38130845,100050.0,100040.0,0.12710847]
[1733941132225,0.38230845,100050.0,100040.0,0.02714847]
[1733941132448,0.23530845,100050.0,100040.0,0.02714847]
[1733941132621,0.38530845,100050.0,100040.0,0.02714847]
[1733941133219,0.38530845,100050.0,100040.0,0.12710847]
[1733941133431,0.23530845,100050.0,100040.0,0.12710847]
[1733941133651,0.38430845,100050.0,100040.0,0.12710847]
[1733941133859,0.38530845,100050.0,100040.0,0.02714847]
[1733941134268,0.58520845,100050.0,100040.0,0.02714847]
[1733941134679,0.73420845,100050.0,100040.0,0.02714847]
[1733941134884,0.73520845,100050.0,100040.0,0.02714847]
[1733941135488,0.73120845,100050.0,100040.0,0.02714847]
[1733941135707,0.58120845,100050.0,100040.0,0.02714847]
[1733941135900,0.23330845,100050.0,100040.0,0.02714847]
[1733941136107,0.23330845,100050.0,100040.0,0.27710847]
[1733941136108,0.23130845,100050.0,100040.0,0.27710847]
[1733941136516,0.085,100050.0,100040.0,0.27710847]
[1733941136722,0.003,100050.0,100040.0,0.27710847]
[1733941136943,0.04092371,100050.0,100040.0,0.27710847]
[1733941137150,0.04292371,100050.0,100040.0,0.27710847]
[1733941137363,0.03692371,100050.0,100040.0,0.27710847]
[1733941138416,0.03692371,100050.0,100040.0,0.27910847]
[1733941138861,0.03692371,100050.0,100040.0,0.27510847]
[1733941139333,0.03692371,100050.0,100040.0,0.27910847]
[1733941140317,0.08282709,100060.0,100050.0,0.15]
[1733941140571,0.18313554,100060.0,100050.0,0.24995]
[1733941141749,0.53301554,100060.0,100040.0,0.12310147]
[1733941141955,0.08282709,100060.0,100050.0,0.15]
[1733941142230,0.0001716,100060.0,100050.0,0.35125786]
[1733941142340,0.0001716,100060.0,100050.0,0.58305845]
[1733941142341,6e-07,100060.0,100050.0,0.58305845]
[1733941142574,6e-07,100060.0,100050.0,1.32169638]
[1733941142834,6e-07,100060.0,100050.0,1.28223043]
[1733941143139,6e-07,100060.0,100050.0,1.03508066]
[1733941143350,6e-07,100060.0,100050.0,0.57364876]
[1733941143565,6e-07,100060.0,100050.0,0.35025845]
[1733941144599,0.0010006,100060.0,100050.0,0.35425845]
[1733941144948,0.03792431,100060.0,100050.0,0.25395]
[1733941145352,0.03892431,100060.0,100050.0,0.26195]
[1733941150645,0.03892431,100060.0,100050.0,0.2620358]
[1733941151224,0.0020006,100060.0,100050.0,0.36234425]
[1733941151969,0.0020006,100060.0,100050.0,0.1120358]
[1733941152311,0.0020006,100060.0,100050.0,0.11303521]
[1733941152312,0.03892431,100060.0,100050.0,0.11303521]
[1733941152510,0.0020006,100060.0,100050.0,0.11303521]
[1733941152918,0.81904074,100100.0,100070.0,0.099923]
[1733941153129,0.30013245,100090.0,100070.0,0.099923]
[1733941153333,0.49996545,100090.0,100070.0,0.15]
[1733941153734,0.49996545,100090.0,100070.0,0.34985]
[1733941153735,0.10030845,100090.0,100070.0,0.34985]
[1733941154306,0.10030845,100090.0,100070.0,0.249924]
[1733941154510,0.30012845,100090.0,100070.0,0.249924]
[1733941154629,0.30012845,100090.0,100070.0,0.34985]
[1733941154844,0.30012845,100090.0,100070.0,0.249924]
[1733941155563,0.71938759,100090.0,100070.0,0.15]
[1733941155762,0.71938759,100090.0,100060.0,0.299796]
[1733941155763,0.71938759,100090.0,100060.0,0.099931]
[1733941156010,0.1259,100080.0,100060.0,0.199866]
[1733941156212,0.22620845,100080.0,100060.0,0.38036386]
[1733941156415,0.22620845,100080.0,100070.0,0.09993]
[1733941157387,0.22620845,100080.0,100060.0,0.099931]
[1733941157787,0.22620845,100080.0,100060.0,0.28042686]
[1733941157988,0.22620845,100080.0,100070.0,0.09993]
[1733941158836,0.22620845,100080.0,100070.0,0.10193]
[1733941159259,0.22620845,100080.0,100070.0,0.10593]
[1733941160036,0.01043166,100090.0,100080.0,0.24992]
[1733941160238,0.1244716,100100.0,100090.0,0.09991]
[1733941160438,0.0001716,100100.0,100090.0,0.33047286]
[1733941161209,0.00072434,100100.0,100090.0,0.43078131]
[1733941163060,0.00072434,100100.0,100090.0,0.43478131]
[1733941163472,0.00172434,100100.0,100090.0,0.44178131]
[1733941164122,0.00172434,100100.0,100090.0,0.49078131]
[1733941165207,0.00072434,100100.0,100090.0,0.48378131]
[1733941165413,0.00172434,100100.0,100090.0,0.49278131]
[1733941165834,0.00172434,100100.0,100090.0,0.47978131]
[1733941166045,0.00272434,100100.0,100090.0,0.48678131]
[1733941166254,0.00172434,100100.0,100090.0,0.48378131]
[1733941166687,0.00272434,100100.0,100090.0,0.48878131]
[1733941166913,0.00272434,100100.0,100090.0,0.49478131]
[1733941167123,0.00372434,100100.0,100090.0,0.49478131]
[1733941167332,0.00372434,100100.0,100090.0,0.44578131]
[1733941167543,0.00372434,100100.0,100090.0,0.34547286]
[1733941168251,0.00372434,100100.0,100090.0,0.26491]
[1733941168460,0.00372434,100100.0,100090.0,0.52398131]
[1733941171616,0.00372434,100100.0,100090.0,0.54698131]
[1733941171831,0.00372434,100100.0,100090.0,0.5573295]
[1733941173589,0.00372434,100100.0,100090.0,0.5972915]
[1733941174627,3.4e-07,100100.0,100090.0,0.7472915]
[1733941175277,0.0004,100110.0,100100.0,0.40116286]
[1733941175278,3.4e-07,100110.0,100100.0,0.40116286]
[1733941175483,2e-08,100110.0,100100.0,0.50147131]
[1733941176825,0.00100002,100110.0,100100.0,0.50747131]
[1733941177445,0.00100002,100110.0,100100.0,0.51147131]
[1733941178088,0.00100002,100110.0,100100.0,0.46377131]
[1733941178289,0.00100002,100110.0,100100.0,0.44077131]
[1733941179069,0.00100002,100110.0,100100.0,0.36020845]
[1733941179517,0.00100002,100110.0,100100.0,0.46377131]
[1733941179764,0.00100002,100110.0,100100.0,0.34046286]
[1733941179962,0.00100002,100110.0,100100.0,0.19046286]
[1733941180159,0.00100002,100110.0,100100.0,0.19146171]
[1733941180361,0.00100002,100110.0,100100.0,0.29177016]
[1733941180641,0.00100002,100110.0,100100.0,0.29077131]
[1733941181214,0.00100002,100110.0,100100.0,0.46377131]
[1733941182395,0.00100002,100110.0,100100.0,0.34046286]
[1733941185210,0.00117162,100110.0,100100.0,0.34046286]
[1733941193638,0.00117162,100110.0,100100.0,0.46377131]
[1733941194861,6.2e-07,100110.0,100100.0,0.46377131]
[1733941195115,6.2e-07,100110.0,100100.0,0.54547131]
[1733941196489,6.2e-07,100110.0,100100.0,1.39459173]
[1733941196709,6.2e-07,100110.0,100100.0,1.89892672]
[1733941196916,6.2e-07,100110.0,100100.0,1.80976663]
[1733941197339,6.2e-07,100110.0,100100.0,1.80576663]
[1733941197541,6.2e-07,100110.0,100100.0,1.80585243]
[1733941197743,0.0157294,100130.0,100120.0,0.08056286]
[1733941197744,0.00673001,100130.0,100120.0,0.08056286]
[1733941197946,0.00673001,100130.0,100120.0,0.35486984]
[1733941198154,0.00673001,100130.0,100120.0,0.45375131]
[1733941199017,0.08623001,100130.0,100120.0,0.35344286]
[1733941199217,0.08623001,100130.0,100120.0,0.27288]
[1733941199421,0.08623001,100130.0,100120.0,0.35344286]
[1733941199695,0.08623001,100130.0,100120.0,0.33244286]
[1733941200261,0.08623001,100130.0,100120.0,0.33344286]
[1733941202860,0.00673001,100130.0,100120.0,0.33344286]
[1733941203063,0.00673001,100130.0,100120.0,0.45675131]
[1733941204428,1e-08,100130.0,100120.0,0.68395131]
[1733941204633,0.0001716,100140.0,100130.0,0.35343286]
[1733941204634,6.1e-07,100140.0,100130.0,0.35343286]
[1733941204836,6.1e-07,100140.0,100130.0,0.96091348]
[1733941205049,6.1e-07,100140.0,100130.0,1.00561458]
[1733941205227,6.1e-07,100140.0,100130.0,1.1944936]
[1733941205425,6.1e-07,100140.0,100130.0,0.92681053]
[1733941205872,6.1e-07,100140.0,100130.0,0.95561673]
[1733941206073,6.1e-07,100140.0,100130.0,1.10561673]
[1733941206286,6.1e-07,100140.0,100130.0,1.1056278]
[1733941206518,6.1e-07,100140.0,100130.0,1.23974499]
[1733941206719,6.1e-07,100140.0,100130.0,1.24574499]
[1733941207245,6.1e-07,100140.0,100130.0,1.1116278]
[1733941207443,6.1e-07,100140.0,100130.0,1.32269566]
[1733941207661,6.1e-07,100150.0,100140.0,0.33042286]
[1733941207875,0.12517183,100180.0,100150.0,0.27285]
[1733941208082,0.0005718,100190.0,100180.0,0.43028286]
[1733941208311,0.0005718,100190.0,100180.0,0.45369131]
[1733941209404,3.9e-07,100190.0,100180.0,0.45369131]
[1733941209654,3.9e-07,100190.0,100180.0,0.45569131]
[1733941209861,3.9e-07,100190.0,100180.0,0.45369131]
[1733941210321,3.9e-07,100190.0,100180.0,0.45969131]
[1733941210725,3.9e-07,100190.0,100180.0,0.46269131]
[1733941211368,3.9e-07,100190.0,100180.0,0.45369131]
[1733941211570,3.9e-07,100190.0,100180.0,0.45569131]
[1733941212004,3.9e-07,100190.0,100180.0,0.47538491]
[1733941212229,0.00346039,100200.0,100190.0,0.35337286]
[1733941212438,0.00346039,100200.0,100190.0,0.45368131]
[1733941213503,0.00346039,100200.0,100190.0,0.45968131]
[1733941214156,0.00346039,100200.0,100190.0,0.46268131]
[1733941217652,0.00346039,100200.0,100190.0,0.36237286]
[1733941219130,0.00346039,100200.0,100190.0,0.33037286]
[1733941219335,0.10376884,100200.0,100190.0,0.10181]
[1733941219544,0.30336884,100200.0,100190.0,0.002]
[1733941219760,0.23406884,100200.0,100190.0,0.10181]
[1733941219988,0.13376039,100200.0,100190.0,0.10181]
[1733941220201,0.13376039,100200.0,100190.0,0.09981]
[1733941220643,0.13376039,100200.0,100190.0,0.10181]
[1733941221065,0.13576039,100200.0,100190.0,0.1018957]
[1733941221487,0.13593179,100200.0,100190.0,0.0998957]
[1733941222561,0.13593179,100200.0,100190.0,8.57e-05]
[1733941222562,0.23624024,100200.0,100190.0,8.57e-05]
[1733941222773,0.23624024,100200.0,100190.0,0.0998957]
[1733941225551,0.00563179,100200.0,100190.0,0.35445656]
[1733941225759,0.00563179,100200.0,100190.0,0.35345856]
[1733941226208,0.00563179,100200.0,100190.0,0.45376701]
[1733941226831,0.00363179,100200.0,100190.0,0.45376701]
[1733941227037,0.00563179,100200.0,100190.0,0.45376701]
[1733941227452,0.00563179,100200.0,100190.0,0.45976701]
[1733941228070,7.9e-07,100200.0,100190.0,0.45976701]
[1733941228493,7.9e-07,100200.0,100190.0,0.50506701]
[1733941228689,0.0005718,100210.0,100200.0,0.35336286]
[1733941228912,0.0005718,100210.0,100200.0,0.45367131]
[1733941230435,0.0005718,100210.0,100200.0,0.45567131]
[1733941231065,8e-07,100210.0,100200.0,0.45567131]
[1733941231285,8e-07,100210.0,100200.0,0.53077131]
[1733941231495,8e-07,100210.0,100200.0,0.72767131]
[1733941231926,0.0881279,100240.0,100200.0,0.72767131]
[1733941231927,0.01215691,100270.0,100260.0,0.23056286]
[1733941232141,0.01215691,100270.0,100260.0,0.12757213]
[1733941232142,0.0004,100270.0,100260.0,0.12757213]
[1733941232363,0.10126088,100270.0,100260.0,0.22731213]
[1733941232573,0.17746088,100270.0,100260.0,0.22731213]
[1733941232782,0.07715243,100270.0,100260.0,0.22731213]
[1733941232994,0.00095243,100270.0,100260.0,0.33087499]
[1733941233211,0.00195243,100270.0,100260.0,0.33087499]
[1733941233440,0.00195243,100270.0,100260.0,0.09974]
[1733941233654,0.24729802,100270.0,100250.0,0.099742]
[1733941233882,0.10030845,100260.0,100240.0,0.28007086]
[1733941234089,0.01631062,100250.0,100230.0,0.099767]
[1733941234297,0.19491907,100250.0,100240.0,0.09976]
[1733941234498,0.0783,100250.0,100240.0,0.09976]
[1733941235161,0.15,100240.0,100200.0,0.18035486]
[1733941235364,0.11662521,100230.0,100210.0,0.099784]
[1733941235563,0.01627676,100220.0,100210.0,0.18034586]
[1733941235782,0.1318,100230.0,100220.0,0.09978]
[1733941236848,0.23266054,100230.0,100220.0,0.09978]
[1733941237515,0.23266054,100230.0,100220.0,0.10178]
[1733941237767,0.00055209,100230.0,100220.0,0.33234286]
[1733941238422,0.00055209,100230.0,100220.0,0.25278]
[1733941239259,0.00055209,100230.0,100220.0,0.27578]
[1733941239456,0.00702558,100230.0,100220.0,0.25278]
[1733941239660,0.00055209,100230.0,100220.0,0.35634286]
[1733941239867,0.00702558,100230.0,100220.0,0.35634286]
[1733941242250,0.00702558,100230.0,100220.0,0.33334286]
[1733941244280,0.00702558,100230.0,100220.0,0.25278]
[1733941245600,0.00055209,100230.0,100220.0,0.25278]
[1733941245791,0.0070247,100230.0,100220.0,0.25278]
[1733941248381,0.00055209,100230.0,100220.0,0.25278]
[1733941248785,0.00055209,100230.0,100220.0,0.33334286]
[1733941249434,0.00055209,100230.0,100220.0,0.25278]
[1733941249881,0.64983868,100230.0,100220.0,0.003]
[1733941250093,0.65631129,100230.0,100220.0,0.0029]
[1733941250293,0.45029768,100230.0,100220.0,0.0029]
[1733941250671,0.64983868,100230.0,100220.0,0.0029]
[1733941250879,0.64983868,100230.0,100210.0,0.199575]
[1733941251094,0.11586247,100220.0,100210.0,0.249785]
[1733941251307,0.10638424,100220.0,100200.0,0.0998757]
[1733941251512,0.00948111,100210.0,100200.0,0.1996717]
[1733941251717,0.10030845,100210.0,100200.0,0.1996717]
[1733941252536,0.10030845,100210.0,100200.0,0.3496717]
[1733941253718,0.10030845,100210.0,100200.0,0.3506717]
[1733941253893,0.10030845,100210.0,100200.0,0.3526717]
[1733941254876,0.18310845,100210.0,100200.0,0.0030857]
[1733941255084,0.18310845,100210.0,100200.0,0.1028857]
[1733941255294,0.0828,100210.0,100200.0,0.1028857]
[1733941255500,0.08434844,100220.0,100210.0,0.199572]
[1733941255702,0.17880845,100220.0,100210.0,0.199572]
[1733941256024,0.17880845,100220.0,100210.0,0.09979]
[1733941256868,0.17980845,100220.0,100210.0,0.09979]
[1733941257071,0.18080845,100220.0,100210.0,0.09979]
[1733941258587,0.18080845,100220.0,100200.0,0.28023356]
[1733941258818,0.18080845,100220.0,100210.0,0.09979]
[1733941259059,0.18080845,100220.0,100210.0,0.0998759]
[1733941259540,0.17980845,100220.0,100210.0,0.0998759]
[1733941259995,0.002,100220.0,100210.0,0.2498759]
[1733941260236,0.002,100220.0,100210.0,0.33043876]
[1733941260478,0.001,100220.0,100210.0,0.2498759]
[1733941260744,0.10230845,100220.0,100210.0,0.2498759]
[1733941260968,0.002,100220.0,100210.0,0.33043876]
[1733941264397,0.10230845,100220.0,100210.0,0.2498759]
[1733941264604,0.18500845,100220.0,100210.0,0.1500859]
[1733941264805,0.18500845,100220.0,100210.0,0.2498759]
[1733941265439,0.18500845,100220.0,100210.0,0.1500859]
[1733941265880,0.18500845,100220.0,100210.0,0.2498759]
[1733941267036,0.18500845,100220.0,100210.0,0.1500859]
[1733941267265,0.18500845,100220.0,100210.0,0.2498759]
[1733941267877,0.23490845,100220.0,100210.0,8.59e-05]
[1733941268080,0.43446845,100220.0,100210.0,8.59e-05]
[1733941268329,0.52314351,100220.0,100210.0,8.59e-05]
[1733941268747,0.85650622,100220.0,100210.0,8.59e-05]
[1733941268953,1.09619387,100220.0,100210.0,8.59e-05]
[1733941269159,1.09519387,100220.0,100210.0,8.59e-05]
[1733941269389,0.15,100210.0,100200.0,8.57e-05]
[1733941269596,0.58820872,100210.0,100200.0,8.57e-05]
[1733941269802,0.57518845,100210.0,100200.0,8.57e-05]
[1733941270010,0.37560845,100210.0,100200.0,0.0998857]
[1733941270224,0.29504559,100210.0,100200.0,8.57e-05]
[1733941270644,0.1253,100210.0,100200.0,8.57e-05]
[1733941270852,0.1253,100210.0,100200.0,0.33144653]
[1733941270853,0.006,100210.0,100200.0,0.33144653]
[1733941271062,1e-06,100210.0,100200.0,0.52925701]
[1733941271276,0.20072389,100230.0,100220.0,0.18034286]
[1733941271490,0.20072389,100230.0,100220.0,0.53014895]
[1733941271699,0.20072389,100230.0,100220.0,0.52915131]
[1733941271910,0.00072389,100230.0,100220.0,0.61836748]
[1733941272093,0.00072389,100230.0,100220.0,0.52915131]
[1733941272914,8.9e-07,100230.0,100220.0,0.53515131]
[1733941273120,8.9e-07,100230.0,100220.0,0.62436748]
[1733941273340,8.9e-07,100230.0,100220.0,0.53515131]
[1733941273547,8.9e-07,100230.0,100220.0,0.62435715]
[1733941274173,8.9e-07,100230.0,100220.0,0.53515131]
[1733941274590,8.9e-07,100230.0,100220.0,0.53815131]
[1733941275670,8.9e-07,100230.0,100220.0,0.62735715]
[1733941275850,8.9e-07,100230.0,100220.0,0.76116591]
[1733941276059,8.9e-07,100230.0,100220.0,0.93957759]
[1733941276265,8.9e-07,100230.0,100220.0,0.76116591]
[1733941276674,8.9e-07,100230.0,100220.0,0.62735715]
[1733941277614,8.9e-07,100230.0,100220.0,0.53815131]
[1733941278240,8.9e-07,100230.0,100220.0,0.36234286]
[1733941278445,8.9e-07,100230.0,100220.0,0.18934286]
[1733941279086,8.9e-07,100230.0,100220.0,0.10878]
[1733941279283,0.10030934,100230.0,100220.0,0.10878]
[1733941279536,0.10030934,100230.0,100220.0,0.009]
[1733941279537,0.25134648,100230.0,100220.0,0.009]
[1733941280172,0.25134648,100230.0,100220.0,0.006]
[1733941280599,0.25134648,100230.0,100220.0,0.09978]
[1733941280809,0.25134648,100230.0,100210.0,0.1996529]
[1733941281019,0.15103803,100230.0,100220.0,0.09978]
[1733941281260,0.25134648,100230.0,100220.0,0.09978]
[1733941281705,0.15183714,100220.0,100210.0,8.59e-05]
[1733941281912,0.3350528,100220.0,100210.0,8.59e-05]
[1733941282116,0.43198,100210.0,100200.0,8.57e-05]
[1733941282331,0.53228845,100210.0,100200.0,8.57e-05]
[1733941283038,0.38228845,100210.0,100200.0,8.57e-05]
[1733941283497,0.38328845,100210.0,100200.0,0.0010857]
[1733941283713,0.18370845,100210.0,100200.0,0.0010857]
[1733941283919,0.18270845,100210.0,100200.0,8.57e-05]
[1733941284127,0.42428845,100210.0,100200.0,0.0010857]
[1733941284332,0.38328845,100210.0,100200.0,0.0010857]
[1733941284989,0.33370845,100210.0,100200.0,0.0010857]
[1733941285199,0.18370845,100210.0,100200.0,0.1008857]
[1733941286078,0.001,100210.0,100200.0,0.2508857]
[1733941286512,0.001,100210.0,100200.0,0.45475701]
[1733941286721,0.001,100210.0,100200.0,0.33144856]
[1733941286936,8.9e-07,100230.0,100220.0,0.09978]
[1733941287153,8.9e-07,100230.0,100220.0,0.33034286]
[1733941287573,8.9e-07,100230.0,100220.0,0.24978]
[1733941287995,8.9e-07,100230.0,100220.0,0.43065131]
[1733941288204,8.9e-07,100230.0,100220.0,0.53025131]
[1733941288641,8.9e-07,100230.0,100220.0,1.16866203]
[1733941288865,8.9e-07,100230.0,100220.0,1.58105005]
[1733941289089,8.9e-07,100230.0,100220.0,1.76183063]
[1733941289502,8.9e-07,100230.0,100220.0,1.62779858]
[1733941289725,0.0001714,100260.0,100250.0,0.08056286]
[1733941289934,0.00033692,100260.0,100250.0,0.45362131]
[1733941291913,0.00033692,100260.0,100250.0,0.45962131]
[1733941292142,0.00033692,100260.0,100250.0,0.25575]
[1733941292384,0.17624537,100260.0,100250.0,0.10575]
[1733941292827,0.17624537,100260.0,100250.0,0.10975]
[1733941293041,0.17584537,100260.0,100250.0,0.10975]
[1733941293675,0.17584537,100260.0,100250.0,0.24975]
[1733941294307,0.24528251,100260.0,100250.0,0.15]
[1733941294513,0.24528251,100260.0,100240.0,0.249752]
[1733941294771,0.24528251,100260.0,100230.0,0.09977]
[1733941294978,0.24528251,100260.0,100240.0,0.24976]
[1733941295189,0.24528251,100260.0,100240.0,0.34952]
[1733941295604,0.24528251,100260.0,100250.0,0.151]
[1733941295818,0.17584537,100260.0,100250.0,0.25075]
[1733941296028,0.17601717,100260.0,100250.0,0.24975]
[1733941297064,0.17601717,100260.0,100250.0,0.25065]
[1733941297288,0.0001718,100260.0,100250.0,0.25065]
[1733941298102,0.10048025,100260.0,100250.0,0.25065]
[1733941298520,0.0001718,100260.0,100250.0,0.25065]
[1733941299589,0.10048025,100260.0,100250.0,0.25065]
[1733941300784,0.35048025,100260.0,100250.0,0.25065]
[1733941301401,0.2501718,100260.0,100250.0,0.33121286]
[1733941303259,0.2501718,100260.0,100250.0,0.25065]
[1733941304296,0.2501718,100260.0,100250.0,0.33121286]
[1733941304510,0.2501718,100260.0,100250.0,0.45452131]
[1733941305363,0.2501718,100260.0,100250.0,0.45352131]
[1733941305582,0.2495718,100260.0,100250.0,0.45452131]
[1733941306412,0.2495718,100260.0,100250.0,0.46052131]
[1733941306620,0.2495718,100260.0,100250.0,0.45952131]
[1733941308074,0.2495718,100260.0,100250.0,0.46460721]
[1733941308490,0.1498318,100260.0,100250.0,0.46460721]
[1733941308717,0.1500036,100260.0,100250.0,0.46460721]
[1733941309073,0.0502636,100260.0,100250.0,0.46460721]
[1733941310440,0.0103676,100260.0,100250.0,0.54140721]
[1733941311072,0.0103676,100260.0,100250.0,0.44160721]
[1733941311303,0.0103676,100260.0,100250.0,0.43660721]
[1733941311511,0.0103676,100260.0,100250.0,0.44160721]
[1733941311721,0.0103676,100260.0,100250.0,0.43560721]
[1733941312138,0.0103676,100260.0,100250.0,0.43660721]
[1733941312349,0.0103676,100260.0,100250.0,0.44160721]
[1733941312552,0.0103676,100260.0,100250.0,0.33529876]
[1733941312699,0.0103676,100260.0,100250.0,0.1048359]
[1733941313482,0.0103676,100260.0,100250.0,0.1108359]
[1733941313726,0.0103676,100260.0,100250.0,0.1048359]
[1733941314142,0.0103676,100260.0,100250.0,0.0998359]
[1733941314552,0.0103676,100260.0,100250.0,0.1018359]
[1733941314759,0.0103676,100260.0,100250.0,0.2518359]
[1733941315599,0.0103676,100260.0,100250.0,0.2538359]
[1733941316091,0.0103676,100260.0,100250.0,0.2518359]
[1733941316716,0.0103676,100260.0,100250.0,0.2498359]
[1733941316924,0.0103676,100260.0,100250.0,0.2518359]
[1733941317507,0.0103676,100260.0,100250.0,0.2538359]
[1733941318129,0.0103676,100260.0,100250.0,0.2518359]
[1733941318279,0.0103676,100260.0,100250.0,0.2538359]
[1733941319511,0.11067605,100260.0,100250.0,0.2538359]
[1733941321158,0.11067605,100260.0,100250.0,0.33439876]
[1733941321159,0.0103676,100260.0,100250.0,0.33439876]
[1733941321689,6e-07,100260.0,100250.0,0.45770721]
[1733941321930,6e-07,100260.0,100250.0,0.53520721]
[1733941322330,6e-07,100260.0,100250.0,0.53320721]
[1733941322752,6e-07,100260.0,100250.0,0.53120721]
[1733941323910,6e-07,100260.0,100250.0,0.53720721]
[1733941325274,6e-07,100270.0,100260.0,0.35330286]
[1733941325484,6e-07,100270.0,100260.0,0.45361131]
[1733941325951,6e-07,100270.0,100260.0,0.33030286]
[1733941326584,6e-07,100270.0,100260.0,0.24974]
[1733941326815,6e-07,100270.0,100260.0,0.33630286]
[1733941327017,6e-07,100270.0,100260.0,0.25574]
[1733941327228,6e-07,100270.0,100260.0,0.34030286]
[1733941327651,6e-07,100270.0,100260.0,0.10974]
[1733941327652,0.15010905,100270.0,100260.0,0.10974]
[1733941327915,0.23210905,100270.0,100260.0,0.006]
[1733941328138,0.23210905,100270.0,100260.0,0.008]
[1733941328347,0.23210905,100270.0,100260.0,0.002]
[1733941328348,0.45154619,100270.0,100260.0,0.002]
[1733941328557,0.45737205,100270.0,100250.0,0.19974042]
[1733941328763,0.5565246,100270.0,100260.0,0.002]
[1733941329021,0.57483305,100270.0,100250.0,0.09999542]
[1733941329229,0.18550191,100260.0,100250.0,0.19974542]
[1733941329439,0.18200845,100260.0,100250.0,0.19974542]
[1733941330287,0.18200845,100260.0,100250.0,0.34974542]
[1733941330494,0.18200845,100260.0,100250.0,0.24999542]
[1733941331110,0.25144559,100260.0,100250.0,0.15025142]
[1733941331324,0.25144559,100260.0,100250.0,0.00025142]
[1733941331539,0.82722196,100260.0,100250.0,0.00025142]
[1733941331748,1.04896225,100260.0,100250.0,0.00025142]
[1733941331966,0.0778,100240.0,100220.0,0.1996349]
[1733941332176,0.17810845,100240.0,100230.0,0.09977]
[1733941332815,0.17810845,100240.0,100230.0,0.24977]
[1733941333106,0.17810845,100240.0,100230.0,0.15]
[1733941333315,0.17810845,100240.0,100230.0,0.24977]
[1733941333777,0.0778,100240.0,100230.0,0.33033286]
[1733941333992,0.12936533,100260.0,100240.0,0.349512]
[1733941334206,0.22967378,100260.0,100250.0,0.09975]
[1733941335664,0.23067378,100260.0,100250.0,0.09975]
[1733941336085,0.00016533,100260.0,100250.0,0.33031286]
[1733941336314,0.00116533,100260.0,100250.0,0.33031286]
[1733941336519,0.00116533,100260.0,100250.0,0.24975]
[1733941336728,0.10147378,100260.0,100250.0,0.24975]
[1733941337149,0.10047378,100260.0,100250.0,0.24975]
[1733941337356,0.00016533,100260.0,100250.0,0.33031286]
[1733941337567,0.00016533,100260.0,100250.0,0.24975]
[1733941338600,0.00016533,100260.0,100250.0,0.33031286]
[1733941340107,0.00016533,100260.0,100250.0,0.33431286]
[1733941340339,0.00016533,100260.0,100250.0,0.33231286]
[1733941340550,0.00016533,100260.0,100250.0,0.33031286]
[1733941340761,3.3e-07,100260.0,100250.0,0.45362131]
[1733941340968,3.3e-07,100260.0,100250.0,0.54012131]
[1733941341602,0.0001724,100270.0,100260.0,0.35330286]
[1733941341603,7.3e-07,100270.0,100260.0,0.35330286]
[1733941341809,7.3e-07,100270.0,100260.0,0.45377664]
[1733941342228,7.3e-07,100270.0,100260.0,0.54306816]
[1733941342659,7.3e-07,100270.0,100260.0,1.0788173]
[1733941342892,7.3e-07,100270.0,100260.0,0.86158849]
[1733941343105,7.3e-07,100290.0,100280.0,0.10356286]
[1733941343339,7.3e-07,100290.0,100280.0,0.45458828]
[1733941343548,7.3e-07,100290.0,100280.0,0.45359131]
[1733941344655,3.3e-07,100300.0,100290.0,0.35327286]
[1733941344883,2.73841868,100330.0,100320.0,0.08056286]
[1733941345099,2.73841868,100330.0,100320.0,0.23056286]
[1733941345765,2.73841868,100330.0,100320.0,0.249681]
[1733941346205,2.73858417,100330.0,100320.0,0.249681]
[1733941346417,2.73858417,100330.0,100320.0,0.33024386]
[1733941346625,2.73858417,100330.0,100320.0,0.249681]
[1733941346840,2.73858417,100330.0,100320.0,0.258681]
[1733941347057,2.73858417,100330.0,100320.0,0.108681]
[1733941347512,2.83889262,100330.0,100320.0,0.108681]
[1733941347957,2.83889262,100330.0,100320.0,0.099681]
[1733941348183,2.83889262,100330.0,100320.0,0.101681]
[1733941348399,2.83889262,100330.0,100320.0,0.103681]
[1733941348613,3.05832976,100330.0,100320.0,0.103681]
[1733941349503,3.05832976,100330.0,100320.0,0.0039]
[1733941349716,3.25767176,100330.0,100320.0,0.0039]
[1733941349943,3.05832976,100330.0,100320.0,0.002]
[1733941350164,3.05832976,100330.0,100320.0,0.099681]
[1733941350600,3.05832976,100330.0,100320.0,0.099581]
[1733941350900,2.83889262,100330.0,100320.0,0.099581]
[1733941351116,2.73858417,100330.0,100320.0,0.099581]
[1733941351747,3.05832976,100330.0,100320.0,0.099581]
[1733941352179,2.83889262,100330.0,100320.0,0.099581]